Workbook

Sheet INTRODUCTION
A1: This file goes through the steps
A2: of the MAD calculations, using the data for the full genome.
A3: The MAD calculations are performed excluding the X and Y chromosomes.
A4: Also included in the file are the Spearman rank order results for the corelations between succesive phylostrata.

Sheet genes list
A1: HGNC | B1: modal value | C1: Chromosome
A2: A2ML1 | B2: 1 | C2: 12
A3: AACS | B3: 1 | C3: 12
A4: AADAC | B4: 1 | C4: 3
A5: AADACL2 | B5: 1 | C5: 3
A6: AADACL3 | B6: 1 | C6: 1
A7: AADACL4 | B7: 1 | C7: 1
A8: AADAT | B8: 1 | C8: 4
A9: AAK1 | B9: 1 | C9: 2
A10: AAMDC | B10: 1 | C10: 11
A11: AAMP | B11: 1 | C11: 2
A12: AARS | B12: 1 | C12: 16
A13: AARS2 | B13: 1 | C13: 6
A14: AARSD1 | B14: 1 | C14: 17
A15: AASDH | B15: 1 | C15: 4
A16: AASDHPPT | B16: 1 | C16: 11
A17: ABAT | B17: 1 | C17: 16
A18: ABCA1 | B18: 1 | C18: 9
A19: ABCA10 | B19: 1 | C19: 17
A20: ABCA12 | B20: 1 | C20: 2
A21: ABCA13 | B21: 1 | C21: 7
A22: ABCA2 | B22: 1 | C22: 9
A23: ABCA3 | B23: 1 | C23: 16
A24: ABCA4 | B24: 1 | C24: 1
A25: ABCA5 | B25: 1 | C25: 17
A26: ABCA6 | B26: 1 | C26: 17
A27: ABCA7 | B27: 1 | C27: 19
A28: ABCA8 | B28: 1 | C28: 17
A29: ABCA9 | B29: 1 | C29: 17
A30: ABCB1 | B30: 1 | C30: 7
A31: ABCB10 | B31: 1 | C31: 1
A32: ABCB11 | B32: 1 | C32: 2
A33: ABCB4 | B33: 1 | C33: 7
A34: ABCB5 | B34: 1 | C34: 7
A35: ABCB6 | B35: 1 | C35: 2
A36: ABCB7 | B36: 1 | C36: X
A37: ABCB8 | B37: 1 | C37: 7
A38: ABCB9 | B38: 1 | C38: 12
A39: ABCC12 | B39: 1 | C39: 16
A40: ABCC3 | B40: 1 | C40: 17
A41: ABCC4 | B41: 1 | C41: 13
A42: ABCD1 | B42: 1 | C42: X
A43: ABCD2 | B43: 1 | C43: 12
A44: ABCD3 | B44: 1 | C44: 1
A45: ABCD4 | B45: 1 | C45: 14
A46: ABCE1 | B46: 1 | C46: 4
A47: ABCF2 | B47: 1 | C47: 7
A48: ABCF3 | B48: 1 | C48: 3
A49: ABCG1 | B49: 1 | C49: 21
A50: ABCG2 | B50: 1 | C50: 4
A51: ABCG4 | B51: 1 | C51: 11
A52: ABCG5 | B52: 1 | C52: 2
A53: ABHD1 | B53: 1 | C53: 2
A54: ABHD10 | B54: 1 | C54: 3
A55: ABHD11 | B55: 1 | C55: 7
A56: ABHD12 | B56: 1 | C56: 20
A57: ABHD12B | B57: 1 | C57: 14
A58: ABHD13 | B58: 1 | C58: 13
A59: ABHD14A | B59: 1 | C59: 3
A60: ABHD14B | B60: 1 | C60: 3
A61: ABHD17A | B61: 1 | C61: 19
A62: ABHD17B | B62: 1 | C62: 9
A63: ABHD17C | B63: 1 | C63: 15
A64: ABHD2 | B64: 1 | C64: 15
A65: ABHD3 | B65: 1 | C65: 18
A66: ABHD4 | B66: 1 | C66: 14
A67: ABHD5 | B67: 1 | C67: 3
A68: ABHD6 | B68: 1 | C68: 3
A69: ABHD8 | B69: 1 | C69: 19
A70: ABL1 | B70: 1 | C70: 9
A71: ABT1 | B71: 1 | C71: 6
A72: ACAA1 | B72: 1 | C72: 3
A73: ACAA2 | B73: 1 | C73: 18
A74: ACACA | B74: 1 | C74: 17
A75: ACACB | B75: 1 | C75: 12
A76: ACAD10 | B76: 1 | C76: 12
A77: ACAD11 | B77: 1 | C77: 3
A78: ACAD8 | B78: 1 | C78: 11
A79: ACAD9 | B79: 1 | C79: 3
A80: ACADL | B80: 1 | C80: 2
A81: ACADM | B81: 1 | C81: 1
A82: ACADS | B82: 1 | C82: 12
A83: ACADSB | B83: 1 | C83: 10
A84: ACADVL | B84: 1 | C84: 17
A85: ACAP1 | B85: 1 | C85: 17
A86: ACAP2 | B86: 1 | C86: 3
A87: ACAP3 | B87: 1 | C87: 1
A88: ACAT1 | B88: 1 | C88: 11
A89: ACAT2 | B89: 1 | C89: 6
A90: ACBD5 | B90: 1 | C90: 10
A91: ACBD7 | B91: 1 | C91: 10
A92: ACCS | B92: 1 | C92: 11
A93: ACCSL | B93: 1 | C93: 11
A94: ACE2 | B94: 1 | C94: X
A95: ACMSD | B95: 1 | C95: 2
A96: ACO1 | B96: 1 | C96: 9
A97: ACO2 | B97: 1 | C97: 22
A98: ACOD1 | B98: 1 | C98: 13
A99: ACOT11 | B99: 1 | C99: 1
A100: ACOT13 | B100: 1 | C100: 6
A101: ACOT7 | B101: 1 | C101: 1
A102: ACOT8 | B102: 1 | C102: 20
A103: ACOX1 | B103: 1 | C103: 17
A104: ACOX2 | B104: 1 | C104: 3
A105: ACOX3 | B105: 1 | C105: 4
A106: ACOXL | B106: 1 | C106: 2
A107: ACP1 | B107: 1 | C107: 2
A108: ACP2 | B108: 1 | C108: 11
A109: ACP4 | B109: 1 | C109: 19
A110: ACP5 | B110: 1 | C110: 19
A111: ACP6 | B111: 1 | C111: 1
A112: ACP7 | B112: 1 | C112: 19
A113: ACPP | B113: 1 | C113: 3
A114: ACSBG1 | B114: 1 | C114: 15
A115: ACSBG2 | B115: 1 | C115: 19
A116: ACSF2 | B116: 1 | C116: 17
A117: ACSF3 | B117: 1 | C117: 16
A118: ACSL1 | B118: 1 | C118: 4
A119: ACSL3 | B119: 1 | C119: 2
A120: ACSL4 | B120: 1 | C120: X
A121: ACSL5 | B121: 1 | C121: 10
A122: ACSL6 | B122: 1 | C122: 5
A123: ACSM1 | B123: 1 | C123: 16
A124: ACSM2A | B124: 1 | C124: 16
A125: ACSM2B | B125: 1 | C125: 16
A126: ACSM3 | B126: 1 | C126: 16
A127: ACSM4 | B127: 1 | C127: 12
A128: ACSM5 | B128: 1 | C128: 16
A129: ACSM6 | B129: 1 | C129: 10
A130: ACSS1 | B130: 1 | C130: 20
A131: ACSS2 | B131: 1 | C131: 20
A132: ACSS3 | B132: 1 | C132: 12
A133: ACTA1 | B133: 1 | C133: 1
A134: ACTA2 | B134: 1 | C134: 10
A135: ACTB | B135: 1 | C135: 7
A136: ACTC1 | B136: 1 | C136: 15
A137: ACTG1 | B137: 1 | C137: 17
A138: ACTG2 | B138: 1 | C138: 2
A139: ACTL6A | B139: 1 | C139: 3
A140: ACTL6B | B140: 1 | C140: 7
A141: ACTL9 | B141: 1 | C141: 19
A142: ACTN1 | B142: 1 | C142: 14
A143: ACTN2 | B143: 1 | C143: 1
A144: ACTR1A | B144: 1 | C144: 10
A145: ACTR2 | B145: 1 | C145: 2
A146: ACTR3 | B146: 1 | C146: 2
A147: ACTR3B | B147: 1 | C147: 7
A148: ACTR3C | B148: 1 | C148: 7
A149: ACY1 | B149: 1 | C149: 3
A150: ACY3 | B150: 1 | C150: 11
A151: ACYP1 | B151: 1 | C151: 14
A152: ACYP2 | B152: 1 | C152: 2
A153: ADA | B153: 1 | C153: 20
A154: ADAL | B154: 1 | C154: 15
A155: ADAP1 | B155: 1 | C155: 7
A156: ADAR | B156: 1 | C156: 1
A157: ADARB1 | B157: 1 | C157: 21
A158: ADAT2 | B158: 1 | C158: 6
A159: ADAT3 | B159: 1 | C159: 19
A160: ADCK1 | B160: 1 | C160: 14
A161: ADCK2 | B161: 1 | C161: 7
A162: ADCK5 | B162: 1 | C162: 8
A163: ADCY10 | B163: 1 | C163: 1
A164: ADD1 | B164: 1 | C164: 4
A165: ADD2 | B165: 1 | C165: 2
A166: ADD3 | B166: 1 | C166: 10
A167: ADH1A | B167: 1 | C167: 4
A168: ADH1B | B168: 1 | C168: 4
A169: ADH4 | B169: 1 | C169: 4
A170: ADH5 | B170: 1 | C170: 4
A171: ADH6 | B171: 1 | C171: 4
A172: ADH7 | B172: 1 | C172: 4
A173: ADHFE1 | B173: 1 | C173: 8
A174: ADI1 | B174: 1 | C174: 2
A175: ADIPOR1 | B175: 1 | C175: 1
A176: ADIPOR2 | B176: 1 | C176: 12
A177: ADK | B177: 1 | C177: 10
A178: ADPRHL2 | B178: 1 | C178: 1
A179: ADRM1 | B179: 1 | C179: 20
A180: ADSL | B180: 1 | C180: 22
A181: ADSS | B181: 1 | C181: 1
A182: ADSSL1 | B182: 1 | C182: 14
A183: AFG1L | B183: 1 | C183: 6
A184: AFG3L2 | B184: 1 | C184: 18
A185: AFMID | B185: 1 | C185: 17
A186: AGAP1 | B186: 1 | C186: 2
A187: AGAP11 | B187: 1 | C187: 10
A188: AGAP2 | B188: 1 | C188: 12
A189: AGAP3 | B189: 1 | C189: 7
A190: AGAP4 | B190: 1 | C190: 10
A191: AGAP5 | B191: 1 | C191: 10
A192: AGAP6 | B192: 1 | C192: 10
A193: AGAP9 | B193: 1 | C193: 10
A194: AGBL1 | B194: 1 | C194: 15
A195: AGBL2 | B195: 1 | C195: 11
A196: AGBL3 | B196: 1 | C196: 7
A197: AGBL4 | B197: 1 | C197: 1
A198: AGBL5 | B198: 1 | C198: 2
A199: AGFG1 | B199: 1 | C199: 2
A200: AGFG2 | B200: 1 | C200: 7
... 18379 more rows

Sheet PIVOT RATIOS
A1: Row Labels | B1: 1 | C1: 2 | D1: 3 | E1: 4 | F1: 5 | G1: 6 | H1: 7 | I1: 8 | J1: 9 | K1: 10 | L1: 11 | M1: 12 | N1: 13 | O1: 14 | P1: 15 | Q1: 16 | R1: 17 | S1: 18 | T1: 19 | U1: 20 | V1: 21 | W1: 22 | X1: Grand Total
A2: 1 | B2: 501 | C2: 383 | D2: 288 | E2: 200 | F2: 199 | G2: 270 | H2: 214 | I2: 174 | J2: 192 | K2: 202 | L2: 258 | M2: 267 | N2: 98 | O2: 185 | P2: 168 | Q2: 246 | R2: 306 | S2: 69 | T2: 261 | U2: 141 | V2: 46 | W2: 127 | X2: 4795 | Y2: =STDEV(B2:W2) -> 101.61762 | Z2: =AVERAGE(B2:W2) -> 217.9545455 | AA2: =Y2/Z2 -> 0.4662330844
A3: 2 | B3: 168 | C3: 111 | D3: 85 | E3: 50 | F3: 71 | G3: 84 | H3: 82 | I3: 56 | J3: 57 | K3: 81 | L3: 93 | M3: 82 | N3: 32 | O3: 51 | P3: 56 | Q3: 67 | R3: 103 | S3: 26 | T3: 89 | U3: 43 | V3: 15 | W3: 42 | X3: 1544 | Y3: =STDEV(B3:W3) -> 33.34043214 | Z3: =AVERAGE(B3:W3) -> 70.18181818 | AA3: =Y3/Z3 -> 0.475057971
A4: 3 | B4: 74 | C4: 54 | D4: 45 | E4: 49 | F4: 44 | G4: 47 | H4: 60 | I4: 32 | J4: 35 | K4: 37 | L4: 44 | M4: 38 | N4: 15 | O4: 25 | P4: 26 | Q4: 32 | R4: 30 | S4: 13 | T4: 41 | U4: 16 | V4: 14 | W4: 24 | X4: 795 | Y4: 15.67617378 | Z4: 36.13636364 | AA4: 0.4338060667
A5: 4 | B5: 34 | C5: 18 | D5: 24 | E5: 18 | F5: 18 | G5: 18 | H5: 11 | I5: 12 | J5: 16 | K5: 16 | L5: 29 | M5: 15 | N5: 1 | O5: 7 | P5: 10 | Q5: 15 | R5: 32 | S5: 5 | T5: 18 | U5: 6 | V5: 2 | W5: 11 | X5: 336 | Y5: 8.859656116 | Z5: 15.27272727 | AA5: 0.5800965314
A6: 6 | B6: 222 | C6: 145 | D6: 123 | E6: 91 | F6: 104 | G6: 99 | H6: 110 | I6: 78 | J6: 83 | K6: 79 | L6: 117 | M6: 122 | N6: 35 | O6: 76 | P6: 81 | Q6: 80 | R6: 115 | S6: 32 | T6: 86 | U6: 54 | V6: 17 | W6: 52 | X6: 2001 | Y6: 43.50093297 | Z6: 90.95454545 | AA6: 0.4782711271
A7: 7 | B7: 128 | C7: 83 | D7: 58 | E7: 49 | F7: 41 | G7: 81 | H7: 45 | I7: 41 | J7: 55 | K7: 59 | L7: 57 | M7: 65 | N7: 17 | O7: 40 | P7: 37 | Q7: 47 | R7: 78 | S7: 19 | T7: 49 | U7: 37 | V7: 18 | W7: 20 | X7: 1124 | Y7: 25.76987738 | Z7: 51.09090909 | AA7: 0.5043926177
A8: 9 | B8: 44 | C8: 34 | D8: 16 | E8: 15 | F8: 18 | G8: 20 | H8: 20 | I8: 19 | J8: 20 | K8: 18 | L8: 28 | M8: 22 | N8: 9 | O8: 7 | P8: 17 | Q8: 16 | R8: 24 | S8: 5 | T8: 15 | U8: 9 | V8: 0 | W8: 10 | X8: 386 | Y8: 9.659573454 | Z8: 17.54545455 | AA8: 0.5505456373
A9: 10 | B9: 9 | C9: 2 | D9: 11 | E9: 7 | F9: 4 | G9: 2 | H9: 6 | I9: 2 | J9: 3 | K9: 3 | L9: 7 | M9: 2 | N9: 3 | O9: 2 | P9: 0 | Q9: 5 | R9: 7 | S9: 2 | T9: 3 | U9: 2 | V9: 0 | W9: 2 | X9: 84 | Y9: 2.872469713 | Z9: 3.818181818 | AA9: 0.7523134962
A10: 12 | B10: 374 | C10: 269 | D10: 226 | E10: 133 | F10: 167 | G10: 186 | H10: 156 | I10: 125 | J10: 140 | K10: 121 | L10: 232 | M10: 179 | N10: 67 | O10: 154 | P10: 98 | Q10: 119 | R10: 203 | S10: 58 | T10: 220 | U10: 93 | V10: 46 | W10: 88 | X10: 3454 | Y10: 77.06768825 | Z10: 157 | AA10: 0.4908769952
A11: 13 | B11: 60 | C11: 16 | D11: 22 | E11: 18 | F11: 26 | G11: 14 | H11: 18 | I11: 18 | J11: 20 | K11: 12 | L11: 24 | M11: 35 | N11: 8 | O11: 10 | P11: 11 | Q11: 23 | R11: 25 | S11: 6 | T11: 26 | U11: 12 | V11: 5 | W11: 21 | X11: 430 | Y11: 11.7218854 | Z11: 19.54545455 | AA11: 0.5997243695
A12: 14 | B12: 42 | C12: 30 | D12: 36 | E12: 18 | F12: 14 | G12: 24 | H12: 19 | I12: 8 | J12: 14 | K12: 10 | L12: 26 | M12: 22 | N12: 9 | O12: 12 | P12: 9 | Q12: 10 | R12: 16 | S12: 3 | T12: 10 | U12: 16 | V12: 9 | W12: 15 | X12: 372 | Y12: 9.709637289 | Z12: 16.90909091 | AA12: 0.5742258612
A13: 15.1 | B13: 47 | C13: 22 | D13: 21 | E13: 11 | F13: 11 | G13: 17 | H13: 28 | I13: 10 | J13: 16 | K13: 16 | L13: 35 | M13: 24 | N13: 3 | O13: 17 | P13: 10 | Q13: 34 | R13: 32 | S13: 4 | T13: 52 | U13: 12 | V13: 4 | W13: 12 | X13: 438 | Y13: 13.35204315 | Z13: 19.90909091 | AA13: 0.6706505692
A14: 15.2 | B14: 67 | C14: 23 | D14: 24 | E14: 19 | F14: 20 | G14: 31 | H14: 30 | I14: 13 | J14: 10 | K14: 7 | L14: 37 | M14: 22 | N14: 2 | O14: 15 | P14: 10 | Q14: 21 | R14: 39 | S14: 6 | T14: 61 | U14: 22 | V14: 3 | W14: 7 | X14: 489 | Y14: 17.054344 | Z14: 22.22727273 | AA14: 0.7672711003
A15: 17 | B15: 95 | C15: 36 | D15: 30 | E15: 27 | F15: 27 | G15: 61 | H15: 32 | I15: 28 | J15: 37 | K15: 23 | L15: 52 | M15: 40 | N15: 4 | O15: 24 | P15: 10 | Q15: 23 | R15: 43 | S15: 3 | T15: 105 | U15: 39 | V15: 2 | W15: 15 | X15: 756 | Y15: 26.08145748 | Z15: 34.36363636 | AA15: 0.7589842124
A16: 18 | B16: 27 | C16: 12 | D16: 5 | E16: 8 | F16: 11 | G16: 16 | H16: 2 | I16: 14 | J16: 10 | K16: 8 | L16: 14 | M16: 8 | N16: 2 | O16: 7 | P16: 4 | Q16: 8 | R16: 9 | S16: 1 | T16: 23 | U16: 5 | V16: 0 | W16: 4 | X16: 198 | Y16: 6.782329983 | Z16: 9 | AA16: 0.7535922203
A17: 19.1 | B17: 26 | C17: 8 | D17: 7 | E17: 9 | F17: 7 | G17: 10 | H17: 7 | I17: 6 | J17: 8 | K17: 5 | L17: 14 | M17: 16 | N17: 7 | O17: 3 | P17: 5 | Q17: 18 | R17: 13 | S17: 2 | T17: 18 | U17: 8 | V17: 1 | W17: 8 | X17: 206 | Y17: 5.972520044 | Z17: 9.363636364 | AA17: 0.6378419464
A18: 19.2 | B18: 31 | C18: 16 | D18: 6 | E18: 12 | F18: 7 | G18: 12 | H18: 7 | I18: 8 | J18: 14 | K18: 13 | L18: 22 | M18: 19 | N18: 3 | O18: 4 | P18: 15 | Q18: 25 | R18: 18 | S18: 3 | T18: 23 | U18: 10 | V18: 2 | W18: 11 | X18: 281 | Y18: 7.825062411 | Z18: 12.77272727 | AA18: 0.6126383382
A19: Grand Total | B19: 1949 | C19: 1262 | D19: 1027 | E19: 734 | F19: 789 | G19: 992 | H19: 847 | I19: 644 | J19: 730 | K19: 710 | L19: 1089 | M19: 978 | N19: 315 | O19: 639 | P19: 567 | Q19: 789 | R19: 1093 | S19: 257 | T19: 1100 | U19: 525 | V19: 184 | W19: 469 | X19: 17689 | Y19: 386.1779108 | Z19: 804.0454545 | AA19: 0.4802936309
A20: 1 | B20: =100*B2/B$19 -> 25.70548999 | C20: =100*C2/C$19 -> 30.34865293 | D20: 28.04284323 | E20: 27.2479564 | F20: 25.22179975 | G20: 27.21774194 | H20: 25.26564345 | I20: 27.01863354 | J20: 26.30136986 | K20: 28.45070423 | L20: 23.69146006 | M20: 27.3006135 | N20: 31.11111111 | O20: 28.9514867 | P20: 29.62962963 | Q20: 31.17870722 | R20: 27.99634035 | S20: 26.84824903 | T20: 23.72727273 | U20: 26.85714286 | V20: 25 | W20: 27.07889126 | X20: 27.10724179 | Y20: 2.104213183 | Z20: 27.28144272 | AA20: 0.0771298353 | AB20: 1
A21: 2 | B21: 8.619805028 | C21: =100*C3/C$19 -> 8.795562599 | D21: 8.276533593 | E21: 6.811989101 | F21: 8.998732573 | G21: 8.467741935 | H21: 9.681227863 | I21: 8.695652174 | J21: 7.808219178 | K21: 11.4084507 | L21: 8.539944904 | M21: 8.384458078 | N21: 10.15873016 | O21: 7.981220657 | P21: 9.87654321 | Q21: 8.491761724 | R21: 9.423604758 | S21: 10.11673152 | T21: 8.090909091 | U21: 8.19047619 | V21: 8.152173913 | W21: 8.955223881 | X21: 8.728588388 | Y21: 0.986345642 | Z21: 8.81480422 | AA21: 0.1118964888 | AB21: 2
A22: 3 | B22: 3.796818881 | C22: 4.278922345 | D22: 4.381694255 | E22: 6.675749319 | F22: 5.576679341 | G22: 4.737903226 | H22: 7.083825266 | I22: 4.968944099 | J22: 4.794520548 | K22: 5.211267606 | L22: 4.04040404 | M22: 3.885480573 | N22: 4.761904762 | O22: 3.912363067 | P22: 4.585537919 | Q22: 4.055766793 | R22: 2.74473925 | S22: 5.058365759 | T22: 3.727272727 | U22: 3.047619048 | V22: 7.608695652 | W22: 5.117270789 | X22: 4.494318503 | Y22: 1.198956539 | Z22: 4.729624785 | AA22: 0.2534992929 | AB22: 3
A23: 4 | B23: 1.744484351 | C23: 1.426307448 | D23: 2.336903603 | E23: 2.452316076 | F23: 2.281368821 | G23: 1.814516129 | H23: 1.298701299 | I23: 1.863354037 | J23: 2.191780822 | K23: 2.253521127 | L23: 2.662993572 | M23: 1.533742331 | N23: 0.3174603175 | O23: 1.095461659 | P23: 1.76366843 | Q23: 1.901140684 | R23: 2.927721866 | S23: 1.945525292 | T23: 1.636363636 | U23: 1.142857143 | V23: 1.086956522 | W23: 2.345415778 | X23: 1.899485556 | Y23: 0.6084235618 | Z23: 1.819207316 | AA23: 0.3344443245 | AB23: 4
A24: 6 | B24: 11.39045664 | C24: 11.48969889 | D24: 11.97663096 | E24: 12.39782016 | F24: 13.18124208 | G24: 9.97983871 | H24: 12.98701299 | I24: 12.11180124 | J24: 11.36986301 | K24: 11.12676056 | L24: 10.74380165 | M24: 12.47443763 | N24: 11.11111111 | O24: 11.89358372 | P24: 14.28571429 | Q24: 10.13941698 | R24: 10.52150046 | S24: 12.45136187 | T24: 7.818181818 | U24: 10.28571429 | V24: 9.239130435 | W24: 11.08742004 | X24: 11.31211487 | Y24: 1.416666686 | Z24: 11.36647725 | AA24: 0.1246355097 | AB24: 6
A25: 7 | B25: 6.567470498 | C25: 6.576862124 | D25: 5.64751704 | E25: 6.675749319 | F25: 5.196451204 | G25: 8.165322581 | H25: 5.312868949 | I25: 6.366459627 | J25: 7.534246575 | K25: 8.309859155 | L25: 5.23415978 | M25: 6.646216769 | N25: 5.396825397 | O25: 6.259780908 | P25: 6.525573192 | Q25: 5.956907478 | R25: 7.136322049 | S25: 7.392996109 | T25: 4.454545455 | U25: 7.047619048 | V25: 9.782608696 | W25: 4.264392324 | X25: 6.354231443 | Y25: 1.302979823 | Z25: 6.475034285 | AA25: 0.2012313395 | AB25: 7
A26: 9 | B26: 2.257567984 | C26: 2.694136292 | D26: 1.557935735 | E26: 2.04359673 | F26: 2.281368821 | G26: 2.016129032 | H26: 2.361275089 | I26: 2.950310559 | J26: 2.739726027 | K26: 2.535211268 | L26: 2.571166208 | M26: 2.249488753 | N26: 2.857142857 | O26: 1.095461659 | P26: 2.998236332 | Q26: 2.027883397 | R26: 2.1957914 | S26: 1.945525292 | T26: 1.363636364 | U26: 1.714285714 | V26: 0 | W26: 2.132196162 | X26: 2.182147097 | Y26: 0.6856242696 | Z26: 2.117639621 | AA26: 0.3237681533 | AB26: 9
A27: 10 | B27: 0.4617752694 | C27: 0.1584786054 | D27: 1.071080818 | E27: 0.9536784741 | F27: 0.5069708492 | G27: 0.2016129032 | H27: 0.7083825266 | I27: 0.3105590062 | J27: 0.4109589041 | K27: 0.4225352113 | L27: 0.6427915519 | M27: 0.2044989775 | N27: 0.9523809524 | O27: 0.3129890454 | P27: 0 | Q27: 0.6337135615 | R27: 0.6404391583 | S27: 0.7782101167 | T27: 0.2727272727 | U27: 0.380952381 | V27: 0 | W27: 0.4264392324 | X27: 0.474871389 | Y27: 0.29698962 | Z27: 0.4750534008 | AA27: 0.6251710218 | AB27: 10
A28: 12 | B28: 19.18932786 | C28: 21.31537242 | D28: 22.00584226 | E28: 18.11989101 | F28: 21.16603295 | G28: 18.75 | H28: 18.41794569 | I28: 19.40993789 | J28: 19.17808219 | K28: 17.04225352 | L28: 21.30394858 | M28: 18.30265849 | N28: 21.26984127 | O28: 24.10015649 | P28: 17.28395062 | Q28: 15.08238276 | R28: 18.57273559 | S28: 22.56809339 | T28: 20 | U28: 17.71428571 | V28: 25 | W28: 18.76332623 | X28: 19.52625926 | Y28: 2.377938929 | Z28: 19.75254841 | AA28: 0.1203864372 | AB28: 12
A29: 13 | B29: 3.078501796 | C29: 1.267828843 | D29: 2.142161636 | E29: 2.452316076 | F29: 3.29531052 | G29: 1.411290323 | H29: 2.12514758 | I29: 2.795031056 | J29: 2.739726027 | K29: 1.690140845 | L29: 2.203856749 | M29: 3.578732106 | N29: 2.53968254 | O29: 1.564945227 | P29: 1.940035273 | Q29: 2.915082383 | R29: 2.287282708 | S29: 2.33463035 | T29: 2.363636364 | U29: 2.285714286 | V29: 2.717391304 | W29: 4.47761194 | X29: 2.430889253 | Y29: 0.7374900353 | Z29: 2.463911633 | AA29: 0.2993167552 | AB29: 13
A30: 14 | B30: 2.154951257 | C30: 2.377179081 | D30: 3.505355404 | E30: 2.452316076 | F30: 1.774397972 | G30: 2.419354839 | H30: 2.243211334 | I30: 1.242236025 | J30: 1.917808219 | K30: 1.408450704 | L30: 2.387511478 | M30: 2.249488753 | N30: 2.857142857 | O30: 1.877934272 | P30: 1.587301587 | Q30: 1.267427123 | R30: 1.463860933 | S30: 1.167315175 | T30: 0.9090909091 | U30: 3.047619048 | V30: 4.891304348 | W30: 3.198294243 | X30: 2.103001866 | Y30: 0.9182506889 | Z30: 2.19997962 | AA30: 0.4173905433 | AB30: 14
A31: 15.1 | B31: 2.411493073 | C31: 1.743264659 | D31: 2.044790652 | E31: 1.498637602 | F31: 1.394169835 | G31: 1.713709677 | H31: 3.305785124 | I31: 1.552795031 | J31: 2.191780822 | K31: 2.253521127 | L31: 3.213957759 | M31: 2.45398773 | N31: 0.9523809524 | O31: 2.660406886 | P31: 1.76366843 | Q31: 4.309252218 | R31: 2.927721866 | S31: 1.556420233 | T31: 4.727272727 | U31: 2.285714286 | V31: 2.173913043 | W31: 2.558635394 | X31: 2.4761151 | Y31: 0.920009415 | Z31: 2.349694506 | AA31: 0.3915442679 | AB31: 15.1
A32: 15.2 | B32: 3.437660339 | C32: 1.822503962 | D32: 2.336903603 | E32: 2.588555858 | F32: 2.534854246 | G32: 3.125 | H32: 3.541912633 | I32: =100*I14/I$19 -> 2.01863354 | J32: 1.369863014 | K32: 0.985915493 | L32: 3.397612489 | M32: 2.249488753 | N32: 0.6349206349 | O32: 2.34741784 | P32: 1.76366843 | Q32: 2.661596958 | R32: 3.568161025 | S32: 2.33463035 | T32: 5.545454545 | U32: 4.19047619 | V32: 1.630434783 | W32: 1.492537313 | X32: 2.764429872 | Y32: 1.126451618 | Z32: 2.526281909 | AA32: 0.4458930785 | AB32: 15.2
A33: 17 | B33: 4.87429451 | C33: 2.852614897 | D33: 2.921129503 | E33: 3.678474114 | F33: 3.422053232 | G33: 6.149193548 | H33: 3.778040142 | I33: 4.347826087 | J33: 5.068493151 | K33: 3.23943662 | L33: 4.775022957 | M33: 4.08997955 | N33: 1.26984127 | O33: 3.755868545 | P33: 1.76366843 | Q33: 2.915082383 | R33: 3.934126258 | S33: 1.167315175 | T33: 9.545454545 | U33: 7.428571429 | V33: 1.086956522 | W33: 3.198294243 | X33: 4.273842501 | Y33: 1.997800634 | Z33: 3.875533505 | AA33: 0.515490482 | AB33: 17
A34: 18 | B34: 1.385325808 | C34: 0.9508716323 | D34: 0.4868549172 | E34: 1.089918256 | F34: 1.394169835 | G34: 1.612903226 | H34: 0.2361275089 | I34: 2.173913043 | J34: 1.369863014 | K34: 1.126760563 | L34: 1.285583104 | M34: 0.81799591 | N34: 0.6349206349 | O34: 1.095461659 | P34: 0.7054673721 | Q34: 1.013941698 | R34: 0.8234217749 | S34: 0.3891050584 | T34: 2.090909091 | U34: 0.9523809524 | V34: 0 | W34: 0.8528784648 | X34: 1.119339703 | Y34: 0.5353807801 | Z34: 1.022216978 | AA34: 0.5237447543 | AB34: 18
A35: 19.1 | B35: 1.334017445 | C35: 0.6339144216 | D35: 0.6815968841 | E35: 1.226158038 | F35: 0.8871989861 | G35: 1.008064516 | H35: 0.826446281 | I35: 0.9316770186 | J35: 1.095890411 | K35: 0.7042253521 | L35: 1.285583104 | M35: 1.63599182 | N35: 2.222222222 | O35: 0.4694835681 | P35: 0.8818342152 | Q35: 2.281368821 | R35: 1.189387008 | S35: 0.7782101167 | T35: 1.636363636 | U35: 1.523809524 | V35: 0.5434782609 | W35: 1.70575693 | X35: 1.164565549 | Y35: 0.5061119336 | Z35: 1.158303572 | AA35: 0.4369423922 | AB35: 19.1
A36: 19.2 | B36: 1.590559261 | C36: 1.267828843 | D36: 0.5842259007 | E36: 1.634877384 | F36: 0.8871989861 | G36: 1.209677419 | H36: 0.826446281 | I36: 1.242236025 | J36: 1.917808219 | K36: 1.830985915 | L36: 2.02020202 | M36: 1.942740286 | N36: 0.9523809524 | O36: 0.6259780908 | P36: 2.645502646 | Q36: 3.168567807 | R36: 1.64684355 | S36: 1.167315175 | T36: 2.090909091 | U36: 1.904761905 | V36: 1.086956522 | W36: =100*W18/W$19 -> 2.345415778 | X36: 1.588557861 | Y36: 0.6628028198 | Z36: 1.572246275 | AA36: 0.4215642487 | AB36: 19.2
A37: Row Labels | B37: 1 | C37: 2 | D37: 3 | E37: 4 | F37: 5 | G37: 6 | H37: 7 | I37: 8 | J37: 9 | K37: 10 | L37: 11 | M37: 12 | N37: 13 | O37: 14 | P37: 15 | Q37: 16 | R37: 17 | S37: 18 | T37: 19 | U37: 20 | V37: 21 | W37: 22 | X37: Grand Total | Z37: =MEDIAN(B35:W35) -> 1.051977464 | AA37: 19.1
B38: =B36/$Z$38 -> 0.9862598067 | C38: =C36/$Z$38 -> 0.7861440062 | D38: 0.3622615881 | E38: 1.013740193 | F38: 0.5501264378 | G38: 0.7500859898 | H38: 0.5124554421 | I38: 0.7702746396 | J38: 1.189177423 | K38: 1.135341423 | L38: 1.252668858 | M38: 1.204637077 | N38: 0.5905438904 | O38: 0.3881509139 | P38: 1.640399696 | Q38: 1.964737278 | R38: 1.021160067 | S38: 0.7238183871 | T38: 1.296512268 | U38: 1.181087781 | V38: 0.6739903097 | W38: 1.454324506 | Z38: =MEDIAN(B36:W36) -> 1.612718323 | AA38: 19.2
B39: =B35/$Z$37 -> 1.268104585 | C39: =C35/$Z$37 -> 0.6025931577 | D39: 0.6479196634 | E39: 1.165574435 | F39: 0.8433631107 | G39: 0.9582567603 | H39: 0.7856121539 | I39: 0.8856435151 | J39: 1.04174324 | K39: 0.6694300748 | L39: 1.222063351 | M39: 1.55515862 | N39: 2.112423792 | O39: 0.4462867165 | P39: 0.8382634094 | Q39: 2.168647999 | R39: 1.130620236 | S39: 0.7397593045 | T39: 1.555512065 | U39: 1.448519171 | V39: 0.5166253838 | W39: 1.621476684 | Z39: medians
A41: 1 | B41: 0.674 | C41: 1.205 | F41: =C41-B41 -> 0.531

Sheet MAD calculations
A1: Row Labels | B1: 1 | C1: 2 | D1: 3 | E1: 4 | F1: 5 | G1: 6 | H1: 7 | I1: 8 | J1: 9 | K1: 10 | L1: 11 | M1: 12 | N1: 13 | O1: 14 | P1: 15 | Q1: 16 | R1: 17 | S1: 18 | T1: 19 | U1: 20 | V1: 21 | W1: 22 | X1: MEDIANS | Y1: 1 | Z1: 2 | AA1: 3 | AB1: 4 | AC1: 5 | AD1: 6 | AE1: 7 | AF1: 8 | AG1: 9 | AH1: 10 | AI1: 11 | AJ1: 12 | AK1: 13 | AL1: 14 | AM1: 15 | AN1: 16 | AO1: 17 | AP1: 18 | AQ1: 19 | AR1: 20 | AS1: 21 | AT1: 22 | AU1: MAD | AV1: MAD/MEDIAN | AW1: Row Labels | AX1: Age | AY1: STDEV | AZ1: STDEV/MEDIAN
A2: 1 | B2: 25.70548999 | C2: 30.34865293 | D2: 28.04284323 | E2: 27.2479564 | F2: 25.22179975 | G2: 27.21774194 | H2: 25.26564345 | I2: 27.01863354 | J2: 26.30136986 | K2: 28.45070423 | L2: 23.69146006 | M2: 27.3006135 | N2: 31.11111111 | O2: 28.9514867 | P2: 29.62962963 | Q2: 31.17870722 | R2: 27.99634035 | S2: 26.84824903 | T2: 23.72727273 | U2: 26.85714286 | V2: 25 | W2: 27.07889126 | X2: =MEDIAN(B2:W2) -> 27.1483166 | Y2: =ABS(B2-$X2) -> 1.442826602 | Z2: =ABS(C2-$X2) -> 3.200336335 | AA2: =ABS(D2-$X2) -> 0.894526636 | AB2: =ABS(E2-$X2) -> 0.09963980653 | AC2: =ABS(F2-$X2) -> 1.92651685 | AD2: =ABS(G2-$X2) -> 0.06942533874 | AE2: =ABS(H2-$X2) -> 1.882673149 | AF2: =ABS(I2-$X2) -> 0.1296830564 | AG2: =ABS(J2-$X2) -> 0.8469467337 | AH2: =ABS(K2-$X2) -> 1.302387629 | AI2: =ABS(L2-$X2) -> 3.456856542 | AJ2: =ABS(M2-$X2) -> 0.1522969002 | AK2: =ABS(N2-$X2) -> 3.962794514 | AL2: =ABS(O2-$X2) -> 1.803170101 | AM2: =ABS(P2-$X2) -> 2.481313033 | AN2: =ABS(Q2-$X2) -> 4.030390628 | AO2: =ABS(R2-$X2) -> 0.8480237509 | AP2: =ABS(S2-$X2) -> 0.3000675695 | AQ2: =ABS(T2-$X2) -> 3.421043869 | AR2: =ABS(U2-$X2) -> 0.2911737396 | AS2: =ABS(V2-$X2) -> 2.148316597 | AT2: =ABS(W2-$X2) -> 0.06942533874 | AU2: =MEDIAN(Y2:AT2) -> 1.372607115 | AV2: =AU2/X2 -> 0.05055956639 | AW2: 1 | AX2: 1 | AY2: =STDEV(Y2:AT2) -> 1.353154942 | AZ2: =AY2/X2 -> 0.04984305149
A3: 2 | B3: 8.619805028 | C3: 8.795562599 | D3: 8.276533593 | E3: 6.811989101 | F3: 8.998732573 | G3: 8.467741935 | H3: 9.681227863 | I3: 8.695652174 | J3: 7.808219178 | K3: 11.4084507 | L3: 8.539944904 | M3: 8.384458078 | N3: 10.15873016 | O3: 7.981220657 | P3: 9.87654321 | Q3: 8.491761724 | R3: 9.423604758 | S3: 10.11673152 | T3: 8.090909091 | U3: 8.19047619 | V3: 8.152173913 | W3: 8.955223881 | X3: =MEDIAN(B3:W3) -> 8.579874966 | Y3: =ABS(B3-$X3) -> 0.03993006232 | Z3: =ABS(C3-$X3) -> 0.2156876331 | AA3: =ABS(D3-$X3) -> 0.3033413729 | AB3: =ABS(E3-$X3) -> 1.767885865 | AC3: =ABS(F3-$X3) -> 0.418857607 | AD3: =ABS(G3-$X3) -> 0.1121330304 | AE3: =ABS(H3-$X3) -> 1.101352897 | AF3: =ABS(I3-$X3) -> 0.115777208 | AG3: =ABS(J3-$X3) -> 0.7716557878 | AH3: =ABS(K3-$X3) -> 2.828575738 | AI3: =ABS(L3-$X3) -> 0.03993006232 | AJ3: =ABS(M3-$X3) -> 0.1954168882 | AK3: =ABS(N3-$X3) -> 1.578855193 | AL3: =ABS(O3-$X3) -> 0.5986543086 | AM3: =ABS(P3-$X3) -> 1.296668244 | AN3: =ABS(Q3-$X3) -> 0.0881132422 | AO3: =ABS(R3-$X3) -> 0.8437297916 | AP3: =ABS(S3-$X3) -> 1.536856552 | AQ3: =ABS(T3-$X3) -> 0.488965875 | AR3: =ABS(U3-$X3) -> 0.3893987754 | AS3: =ABS(V3-$X3) -> 0.4277010529 | AT3: =ABS(W3-$X3) -> 0.3753489147 | AU3: =MEDIAN(Y3:AT3) -> 0.4232793299 | AV3: =AU3/X3 -> 0.04933397417 | AW3: 2 | AX3: 2 | AY3: =STDEV(Y3:AT3) -> 0.7129767874 | AZ3: =AY3/X3 -> 0.08309873865
A4: 3 | B4: 3.796818881 | C4: 4.278922345 | D4: 4.381694255 | E4: 6.675749319 | F4: 5.576679341 | G4: 4.737903226 | H4: 7.083825266 | I4: 4.968944099 | J4: 4.794520548 | K4: 5.211267606 | L4: 4.04040404 | M4: 3.885480573 | N4: 4.761904762 | O4: 3.912363067 | P4: 4.585537919 | Q4: 4.055766793 | R4: 2.74473925 | S4: 5.058365759 | T4: 3.727272727 | U4: 3.047619048 | V4: 7.608695652 | W4: 5.117270789 | X4: =MEDIAN(B4:W4) -> 4.661720572 | Y4: =ABS(B4-$X4) -> 0.8649016909 | Z4: =ABS(C4-$X4) -> 0.3827982269 | AA4: =ABS(D4-$X4) -> 0.2800263172 | AB4: =ABS(E4-$X4) -> 2.014028746 | AC4: =ABS(F4-$X4) -> 0.9149587686 | AD4: =ABS(G4-$X4) -> 0.07618265347 | AE4: =ABS(H4-$X4) -> 2.422104693 | AF4: =ABS(I4-$X4) -> 0.307223527 | AG4: =ABS(J4-$X4) -> 0.1327999756 | AH4: =ABS(K4-$X4) -> 0.5495470333 | AI4: =ABS(L4-$X4) -> 0.6213165319 | AJ4: =ABS(M4-$X4) -> 0.7762399997 | AK4: =ABS(N4-$X4) -> 0.1001841896 | AL4: =ABS(O4-$X4) -> 0.749357505 | AM4: =ABS(P4-$X4) -> 0.07618265347 | AN4: =ABS(Q4-$X4) -> 0.6059537789 | AO4: =ABS(R4-$X4) -> 1.916981323 | AP4: =ABS(S4-$X4) -> 0.3966451864 | AQ4: =ABS(T4-$X4) -> 0.9344478451 | AR4: =ABS(U4-$X4) -> 1.614101525 | AS4: =ABS(V4-$X4) -> 2.94697508 | AT4: =ABS(W4-$X4) -> 0.4555502166 | AU4: =MEDIAN(Y4:AT4) -> 0.6136351554 | AV4: =AU4/X4 -> 0.1316327622 | AW4: 3 | AX4: 3 | AY4: =STDEV(Y4:AT4) -> 0.8059206782 | AZ4: =AY4/X4 -> 0.1728805203
A5: 4 | B5: 1.744484351 | C5: 1.426307448 | D5: 2.336903603 | E5: 2.452316076 | F5: 2.281368821 | G5: 1.814516129 | H5: 1.298701299 | I5: 1.863354037 | J5: 2.191780822 | K5: 2.253521127 | L5: 2.662993572 | M5: 1.533742331 | N5: 0.3174603175 | O5: 1.095461659 | P5: 1.76366843 | Q5: 1.901140684 | R5: 2.927721866 | S5: 1.945525292 | T5: 1.636363636 | U5: 1.142857143 | V5: 1.086956522 | W5: 2.345415778 | X5: =MEDIAN(B5:W5) -> 1.838935083 | Y5: =ABS(B5-$X5) -> 0.0944507322 | Z5: =ABS(C5-$X5) -> 0.4126276347 | AA5: =ABS(D5-$X5) -> 0.4979685196 | AB5: =ABS(E5-$X5) -> 0.6133809931 | AC5: =ABS(F5-$X5) -> 0.4424337381 | AD5: =ABS(G5-$X5) -> 0.02441895412 | AE5: =ABS(H5-$X5) -> 0.5402337844 | AF5: =ABS(I5-$X5) -> 0.02441895412 | AG5: =ABS(J5-$X5) -> 0.3528457388 | AH5: =ABS(K5-$X5) -> 0.4145860436 | AI5: =ABS(L5-$X5) -> 0.8240584889 | AJ5: =ABS(M5-$X5) -> 0.3051927519 | AK5: =ABS(N5-$X5) -> 1.521474766 | AL5: =ABS(O5-$X5) -> 0.7434734243 | AM5: =ABS(P5-$X5) -> 0.07526665281 | AN5: =ABS(Q5-$X5) -> 0.06220560126 | AO5: =ABS(R5-$X5) -> 1.088786783 | AP5: =ABS(S5-$X5) -> 0.1065902087 | AQ5: =ABS(T5-$X5) -> 0.2025714468 | AR5: =ABS(U5-$X5) -> 0.6960779403 | AS5: =ABS(V5-$X5) -> 0.7519785614 | AT5: =ABS(W5-$X5) -> 0.5064806951 | AU5: =MEDIAN(Y5:AT5) -> 0.4285098909 | AV5: =AU5/X5 -> 0.2330206731 | AW5: 4 | AX5: 4 | AY5: =STDEV(Y5:AT5) -> 0.3753492051 | AZ5: =AY5/X5 -> 0.2041122651
A6: 6 | B6: 11.39045664 | C6: 11.48969889 | D6: 11.97663096 | E6: 12.39782016 | F6: 13.18124208 | G6: 9.97983871 | H6: 12.98701299 | I6: 12.11180124 | J6: 11.36986301 | K6: 11.12676056 | L6: 10.74380165 | M6: 12.47443763 | N6: 11.11111111 | O6: 11.89358372 | P6: 14.28571429 | Q6: 10.13941698 | R6: 10.52150046 | S6: 12.45136187 | T6: 7.818181818 | U6: 10.28571429 | V6: 9.239130435 | W6: 11.08742004 | X6: =MEDIAN(B6:W6) -> 11.38015983 | Y6: =ABS(B6-$X6) -> 0.01029681537 | Z6: =ABS(C6-$X6) -> 0.1095390616 | AA6: =ABS(D6-$X6) -> 0.5964711349 | AB6: =ABS(E6-$X6) -> 1.017660334 | AC6: =ABS(F6-$X6) -> 1.80108225 | AD6: =ABS(G6-$X6) -> 1.400321119 | AE6: =ABS(H6-$X6) -> 1.606853158 | AF6: =ABS(I6-$X6) -> 0.7316414132 | AG6: =ABS(J6-$X6) -> 0.01029681537 | AH6: =ABS(K6-$X6) -> 0.2533992657 | AI6: =ABS(L6-$X6) -> 0.6363581762 | AJ6: =ABS(M6-$X6) -> 1.094277799 | AK6: =ABS(N6-$X6) -> 0.269048718 | AL6: =ABS(O6-$X6) -> 0.5134238955 | AM6: =ABS(P6-$X6) -> 2.905554457 | AN6: =ABS(Q6-$X6) -> 1.240742846 | AO6: =ABS(R6-$X6) -> 0.8586593716 | AP6: =ABS(S6-$X6) -> 1.071202039 | AQ6: =ABS(T6-$X6) -> 3.561978011 | AR6: =ABS(U6-$X6) -> 1.094445543 | AS6: =ABS(V6-$X6) -> 2.141029394 | AT6: =ABS(W6-$X6) -> 0.2927397864 | AU6: =MEDIAN(Y6:AT6) -> 0.938159853 | AV6: =AU6/X6 -> 0.08243819657 | AW6: 6 | AX6: 6 | AY6: =STDEV(Y6:AT6) -> 0.9167381557 | AZ6: =AY6/X6 -> 0.0805558243
A7: 7 | B7: 6.567470498 | C7: 6.576862124 | D7: 5.64751704 | E7: 6.675749319 | F7: 5.196451204 | G7: 8.165322581 | H7: 5.312868949 | I7: 6.366459627 | J7: 7.534246575 | K7: 8.309859155 | L7: 5.23415978 | M7: 6.646216769 | N7: 5.396825397 | O7: 6.259780908 | P7: 6.525573192 | Q7: 5.956907478 | R7: 7.136322049 | S7: 7.392996109 | T7: 4.454545455 | U7: 7.047619048 | V7: 9.782608696 | W7: 4.264392324 | X7: =MEDIAN(B7:W7) -> 6.546521845 | Y7: =ABS(B7-$X7) -> 0.02094865273 | Z7: =ABS(C7-$X7) -> 0.03034027865 | AA7: =ABS(D7-$X7) -> 0.899004805 | AB7: =ABS(E7-$X7) -> 0.1292274738 | AC7: =ABS(F7-$X7) -> 1.350070641 | AD7: =ABS(G7-$X7) -> 1.618800736 | AE7: =ABS(H7-$X7) -> 1.233652896 | AF7: =ABS(I7-$X7) -> 0.1800622176 | AG7: =ABS(J7-$X7) -> 0.9877247304 | AH7: =ABS(K7-$X7) -> 1.76333731 | AI7: =ABS(L7-$X7) -> 1.312362065 | AJ7: =ABS(M7-$X7) -> 0.09969492395 | AK7: =ABS(N7-$X7) -> 1.149696448 | AL7: =ABS(O7-$X7) -> 0.2867409373 | AM7: =ABS(P7-$X7) -> 0.02094865273 | AN7: =ABS(Q7-$X7) -> 0.5896143671 | AO7: =ABS(R7-$X7) -> 0.5898002044 | AP7: =ABS(S7-$X7) -> 0.846474264 | AQ7: =ABS(T7-$X7) -> 2.09197639 | AR7: =ABS(U7-$X7) -> 0.5010972027 | AS7: =ABS(V7-$X7) -> 3.236086851 | AT7: =ABS(W7-$X7) -> 2.282129521 | AU7: =MEDIAN(Y7:AT7) -> 0.8727395345 | AV7: =AU7/X7 -> 0.1333134686 | AW7: 7 | AX7: 7 | AY7: =STDEV(Y7:AT7) -> 0.8535099151 | AZ7: =AY7/X7 -> 0.1303760891
A8: 9 | B8: 2.257567984 | C8: 2.694136292 | D8: 1.557935735 | E8: 2.04359673 | F8: 2.281368821 | G8: 2.016129032 | H8: 2.361275089 | I8: 2.950310559 | J8: 2.739726027 | K8: 2.535211268 | L8: 2.571166208 | M8: 2.249488753 | N8: 2.857142857 | O8: 1.095461659 | P8: 2.998236332 | Q8: 2.027883397 | R8: 2.1957914 | S8: 1.945525292 | T8: 1.363636364 | U8: 1.714285714 | V8: 0 | W8: 2.132196162 | X8: =MEDIAN(B8:W8) -> 2.222640076 | Y8: =ABS(B8-$X8) -> 0.03492790739 | Z8: =ABS(C8-$X8) -> 0.4714962154 | AA8: =ABS(D8-$X8) -> 0.664704341 | AB8: =ABS(E8-$X8) -> 0.1790433459 | AC8: =ABS(F8-$X8) -> 0.05872874511 | AD8: =ABS(G8-$X8) -> 0.2065110439 | AE8: =ABS(H8-$X8) -> 0.1386350124 | AF8: =ABS(I8-$X8) -> 0.7276704828 | AG8: =ABS(J8-$X8) -> 0.5170859512 | AH8: =ABS(K8-$X8) -> 0.3125711914 | AI8: =ABS(L8-$X8) -> 0.3485261313 | AJ8: =ABS(M8-$X8) -> 0.02684867637 | AK8: =ABS(N8-$X8) -> 0.634502781 | AL8: =ABS(O8-$X8) -> 1.127178417 | AM8: =ABS(P8-$X8) -> 0.7755962554 | AN8: =ABS(Q8-$X8) -> 0.1947566795 | AO8: =ABS(R8-$X8) -> 0.02684867637 | AP8: =ABS(S8-$X8) -> 0.2771147844 | AQ8: =ABS(T8-$X8) -> 0.8590037126 | AR8: =ABS(U8-$X8) -> 0.5083543619 | AS8: =ABS(V8-$X8) -> 2.222640076 | AT8: =ABS(W8-$X8) -> 0.09044391414 | AU8: =MEDIAN(Y8:AT8) -> 0.3305486614 | AV8: =AU8/X8 -> 0.1487189334 | AW8: 9 | AX8: 9 | AY8: =STDEV(Y8:AT8) -> 0.4973676732 | AZ8: =AY8/X8 -> 0.2237733759
A9: 10 | B9: 0.4617752694 | C9: 0.1584786054 | D9: 1.071080818 | E9: 0.9536784741 | F9: 0.5069708492 | G9: 0.2016129032 | H9: 0.7083825266 | I9: 0.3105590062 | J9: 0.4109589041 | K9: 0.4225352113 | L9: 0.6427915519 | M9: 0.2044989775 | N9: 0.9523809524 | O9: 0.3129890454 | P9: 0 | Q9: 0.6337135615 | R9: 0.6404391583 | S9: 0.7782101167 | T9: 0.2727272727 | U9: 0.380952381 | V9: 0 | W9: 0.4264392324 | X9: =MEDIAN(B9:W9) -> 0.4244872218 | Y9: =ABS(B9-$X9) -> 0.03728804753 | Z9: =ABS(C9-$X9) -> 0.2660086165 | AA9: =ABS(D9-$X9) -> 0.6465935961 | AB9: =ABS(E9-$X9) -> 0.5291912523 | AC9: =ABS(F9-$X9) -> 0.08248362734 | AD9: =ABS(G9-$X9) -> 0.2228743186 | AE9: =ABS(H9-$X9) -> 0.2838953047 | AF9: =ABS(I9-$X9) -> 0.1139282156 | AG9: =ABS(J9-$X9) -> 0.01352831773 | AH9: =ABS(K9-$X9) -> 0.001952010571 | AI9: =ABS(L9-$X9) -> 0.21830433 | AJ9: =ABS(M9-$X9) -> 0.2199882443 | AK9: =ABS(N9-$X9) -> 0.5278937305 | AL9: =ABS(O9-$X9) -> 0.1114981765 | AM9: =ABS(P9-$X9) -> 0.4244872218 | AN9: =ABS(Q9-$X9) -> 0.2092263396 | AO9: =ABS(R9-$X9) -> 0.2159519364 | AP9: =ABS(S9-$X9) -> 0.3537228949 | AQ9: =ABS(T9-$X9) -> 0.1517599491 | AR9: =ABS(U9-$X9) -> 0.04353484089 | AS9: =ABS(V9-$X9) -> 0.4244872218 | AT9: =ABS(W9-$X9) -> 0.001952010571 | AU9: =MEDIAN(Y9:AT9) -> 0.2171281332 | AV9: =AU9/X9 -> 0.5115068772 | AW9: 10 | AX9: 12 | AY9: =STDEV(Y9:AT9) -> 0.1859319297 | AZ9: =AY9/X9 -> 0.4380153752
A10: 12 | B10: 19.18932786 | C10: 21.31537242 | D10: 22.00584226 | E10: 18.11989101 | F10: 21.16603295 | G10: 18.75 | H10: 18.41794569 | I10: 19.40993789 | J10: 19.17808219 | K10: 17.04225352 | L10: 21.30394858 | M10: 18.30265849 | N10: 21.26984127 | O10: 24.10015649 | P10: 17.28395062 | Q10: 15.08238276 | R10: 18.57273559 | S10: 22.56809339 | T10: 20 | U10: 17.71428571 | V10: 25 | W10: 18.76332623 | X10: =MEDIAN(B10:W10) -> 19.18370503 | Y10: =ABS(B10-$X10) -> 0.00562283433 | Z10: =ABS(C10-$X10) -> 2.131667399 | AA10: =ABS(D10-$X10) -> 2.822137233 | AB10: =ABS(E10-$X10) -> 1.063814018 | AC10: =ABS(F10-$X10) -> 1.982327927 | AD10: =ABS(G10-$X10) -> 0.4337050261 | AE10: =ABS(H10-$X10) -> 0.7657593354 | AF10: =ABS(I10-$X10) -> 0.2262328621 | AG10: =ABS(J10-$X10) -> 0.00562283433 | AH10: =ABS(K10-$X10) -> 2.141451505 | AI10: =ABS(L10-$X10) -> 2.120243551 | AJ10: =ABS(M10-$X10) -> 0.8810465394 | AK10: =ABS(N10-$X10) -> 2.086136244 | AL10: =ABS(O10-$X10) -> 4.916451468 | AM10: =ABS(P10-$X10) -> 1.899754409 | AN10: =ABS(Q10-$X10) -> 4.101322263 | AO10: =ABS(R10-$X10) -> 0.610969436 | AP10: =ABS(S10-$X10) -> 3.384388359 | AQ10: =ABS(T10-$X10) -> 0.8162949739 | AR10: =ABS(U10-$X10) -> 1.469419312 | AS10: =ABS(V10-$X10) -> 5.816294974 | AT10: =ABS(W10-$X10) -> 0.4203788001 | AU10: =MEDIAN(Y10:AT10) -> 1.68458686 | AV10: =AU10/X10 -> 0.08781342593 | AW10: 12 | AX10: 13 | AY10: =STDEV(Y10:AT10) -> 1.585201297 | AZ10: =AY10/X10 -> 0.08263269765
A11: 13 | B11: 3.078501796 | C11: 1.267828843 | D11: 2.142161636 | E11: 2.452316076 | F11: 3.29531052 | G11: 1.411290323 | H11: 2.12514758 | I11: 2.795031056 | J11: 2.739726027 | K11: 1.690140845 | L11: 2.203856749 | M11: 3.578732106 | N11: 2.53968254 | O11: 1.564945227 | P11: 1.940035273 | Q11: 2.915082383 | R11: 2.287282708 | S11: 2.33463035 | T11: 2.363636364 | U11: 2.285714286 | V11: 2.717391304 | W11: 4.47761194 | X11: =MEDIAN(B11:W11) -> 2.349133357 | Y11: =ABS(B11-$X11) -> 0.7293684389 | Z11: =ABS(C11-$X11) -> 1.081304514 | AA11: =ABS(D11-$X11) -> 0.2069717211 | AB11: =ABS(E11-$X11) -> 0.1031827194 | AC11: =ABS(F11-$X11) -> 0.9461771627 | AD11: =ABS(G11-$X11) -> 0.9378430343 | AE11: =ABS(H11-$X11) -> 0.2239857772 | AF11: =ABS(I11-$X11) -> 0.445897699 | AG11: =ABS(J11-$X11) -> 0.3905926705 | AH11: =ABS(K11-$X11) -> 0.6589925118 | AI11: =ABS(L11-$X11) -> 0.1452766076 | AJ11: =ABS(M11-$X11) -> 1.229598749 | AK11: =ABS(N11-$X11) -> 0.1905491828 | AL11: =ABS(O11-$X11) -> 0.78418813 | AM11: =ABS(P11-$X11) -> 0.4090980835 | AN11: =ABS(Q11-$X11) -> 0.5659490258 | AO11: =ABS(R11-$X11) -> 0.06185064877 | AP11: =ABS(S11-$X11) -> 0.01450300672 | AQ11: =ABS(T11-$X11) -> 0.01450300672 | AR11: =ABS(U11-$X11) -> 0.0634190712 | AS11: =ABS(V11-$X11) -> 0.3682579474 | AT11: =ABS(W11-$X11) -> 2.128478583 | AU11: =MEDIAN(Y11:AT11) -> 0.399845377 | AV11: =AU11/X11 -> 0.1702097396 | AW11: 13 | AX11: 14 | AY11: =STDEV(Y11:AT11) -> 0.5112678676 | AZ11: =AY11/X11 -> 0.2176410573
A12: 14 | B12: 2.154951257 | C12: 2.377179081 | D12: 3.505355404 | E12: 2.452316076 | F12: 1.774397972 | G12: 2.419354839 | H12: 2.243211334 | I12: 1.242236025 | J12: 1.917808219 | K12: 1.408450704 | L12: 2.387511478 | M12: 2.249488753 | N12: 2.857142857 | O12: 1.877934272 | P12: 1.587301587 | Q12: 1.267427123 | R12: 1.463860933 | S12: 1.167315175 | T12: 0.9090909091 | U12: 3.047619048 | V12: 4.891304348 | W12: 3.198294243 | X12: =MEDIAN(B12:W12) -> 2.199081296 | Y12: =ABS(B12-$X12) -> 0.04413003853 | Z12: =ABS(C12-$X12) -> 0.1780977852 | AA12: =ABS(D12-$X12) -> 1.306274109 | AB12: =ABS(E12-$X12) -> 0.2532347807 | AC12: =ABS(F12-$X12) -> 0.4246833235 | AD12: =ABS(G12-$X12) -> 0.2202735431 | AE12: =ABS(H12-$X12) -> 0.04413003853 | AF12: =ABS(I12-$X12) -> 0.9568452707 | AG12: =ABS(J12-$X12) -> 0.2812730764 | AH12: =ABS(K12-$X12) -> 0.7906305914 | AI12: =ABS(L12-$X12) -> 0.1884301828 | AJ12: =ABS(M12-$X12) -> 0.05040745697 | AK12: =ABS(N12-$X12) -> 0.6580615616 | AL12: =ABS(O12-$X12) -> 0.3211470233 | AM12: =ABS(P12-$X12) -> 0.6117797083 | AN12: =ABS(Q12-$X12) -> 0.9316541726 | AO12: =ABS(R12-$X12) -> 0.7352203624 | AP12: =ABS(S12-$X12) -> 1.03176612 | AQ12: =ABS(T12-$X12) -> 1.289990386 | AR12: =ABS(U12-$X12) -> 0.848537752 | AS12: =ABS(V12-$X12) -> 2.692223052 | AT12: =ABS(W12-$X12) -> 0.9992129475 | AU12: =MEDIAN(Y12:AT12) -> 0.6349206349 | AV12: =AU12/X12 -> 0.2887208564 | AW12: 14 | AX12: 15.1 | AY12: =STDEV(Y12:AT12) -> 0.6044411543 | AZ12: =AY12/X12 -> 0.2748607591
A13: 15.1 | B13: 2.411493073 | C13: 1.743264659 | D13: 2.044790652 | E13: 1.498637602 | F13: 1.394169835 | G13: 1.713709677 | H13: 3.305785124 | I13: 1.552795031 | J13: 2.191780822 | K13: 2.253521127 | L13: 3.213957759 | M13: 2.45398773 | N13: 0.9523809524 | O13: 2.660406886 | P13: 1.76366843 | Q13: 4.309252218 | R13: 2.927721866 | S13: 1.556420233 | T13: 4.727272727 | U13: 2.285714286 | V13: 2.173913043 | W13: 2.558635394 | X13: =MEDIAN(B13:W13) -> 2.222650974 | Y13: =ABS(B13-$X13) -> 0.188842099 | Z13: =ABS(C13-$X13) -> 0.4793863151 | AA13: =ABS(D13-$X13) -> 0.177860322 | AB13: =ABS(E13-$X13) -> 0.7240133722 | AC13: =ABS(F13-$X13) -> 0.8284811391 | AD13: =ABS(G13-$X13) -> 0.5089412969 | AE13: =ABS(H13-$X13) -> 1.08313415 | AF13: =ABS(I13-$X13) -> 0.6698559433 | AG13: =ABS(J13-$X13) -> 0.03087015242 | AH13: =ABS(K13-$X13) -> 0.03087015242 | AI13: =ABS(L13-$X13) -> 0.9913067851 | AJ13: =ABS(M13-$X13) -> 0.2313367557 | AK13: =ABS(N13-$X13) -> 1.270270022 | AL13: =ABS(O13-$X13) -> 0.4377559114 | AM13: =ABS(P13-$X13) -> 0.458982544 | AN13: =ABS(Q13-$X13) -> 2.086601244 | AO13: =ABS(R13-$X13) -> 0.7050708921 | AP13: =ABS(S13-$X13) -> 0.6662307409 | AQ13: =ABS(T13-$X13) -> 2.504621753 | AR13: =ABS(U13-$X13) -> 0.06306331138 | AS13: =ABS(V13-$X13) -> 0.04873793086 | AT13: =ABS(W13-$X13) -> 0.3359844201 | AU13: =MEDIAN(Y13:AT13) -> 0.494163806 | AV13: =AU13/X13 -> 0.2223308165 | AW13: 15.1 | AX13: 15.2 | AY13: =STDEV(Y13:AT13) -> 0.6378430206 | AZ13: =AY13/X13 -> 0.286973991
A14: 15.2 | B14: 3.437660339 | C14: 1.822503962 | D14: 2.336903603 | E14: 2.588555858 | F14: 2.534854246 | G14: 3.125 | H14: 3.541912633 | I14: 2.01863354 | J14: 1.369863014 | K14: 0.985915493 | L14: 3.397612489 | M14: 2.249488753 | N14: 0.6349206349 | O14: 2.34741784 | P14: 1.76366843 | Q14: 2.661596958 | R14: 3.568161025 | S14: 2.33463035 | T14: 5.545454545 | U14: 4.19047619 | V14: 1.630434783 | W14: 1.492537313 | X14: =MEDIAN(B14:W14) -> 2.342160722 | Y14: =ABS(B14-$X14) -> 1.095499617 | Z14: =ABS(C14-$X14) -> 0.5196567596 | AA14: =ABS(D14-$X14) -> 0.005257118825 | AB14: =ABS(E14-$X14) -> 0.2463951368 | AC14: =ABS(F14-$X14) -> 0.1926935243 | AD14: =ABS(G14-$X14) -> 0.7828392784 | AE14: =ABS(H14-$X14) -> 1.199751911 | AF14: =ABS(I14-$X14) -> 0.3235271812 | AG14: =ABS(J14-$X14) -> 0.9722977079 | AH14: =ABS(K14-$X14) -> 1.356245229 | AI14: =ABS(L14-$X14) -> 1.055451767 | AJ14: =ABS(M14-$X14) -> 0.09267196899 | AK14: =ABS(N14-$X14) -> 1.707240087 | AL14: =ABS(O14-$X14) -> 0.005257118825 | AM14: =ABS(P14-$X14) -> 0.5784922912 | AN14: =ABS(Q14-$X14) -> 0.3194362366 | AO14: =ABS(R14-$X14) -> 1.226000303 | AP14: =ABS(S14-$X14) -> 0.007530371356 | AQ14: =ABS(T14-$X14) -> 3.203293824 | AR14: =ABS(U14-$X14) -> 1.848315469 | AS14: =ABS(V14-$X14) -> 0.7117259389 | AT14: =ABS(W14-$X14) -> 0.8496234081 | AU14: =MEDIAN(Y14:AT14) -> 0.7472826087 | AV14: =AU14/X14 -> 0.3190569297 | AW14: 15.2 | AX14: 17 | AY14: =STDEV(Y14:AT14) -> 0.7613154672 | AZ14: =AY14/X14 -> 0.3250483454
A15: 17 | B15: 4.87429451 | C15: 2.852614897 | D15: 2.921129503 | E15: 3.678474114 | F15: 3.422053232 | G15: 6.149193548 | H15: 3.778040142 | I15: 4.347826087 | J15: 5.068493151 | K15: 3.23943662 | L15: 4.775022957 | M15: 4.08997955 | N15: 1.26984127 | O15: 3.755868545 | P15: 1.76366843 | Q15: 2.915082383 | R15: 3.934126258 | S15: 1.167315175 | T15: 9.545454545 | U15: 7.428571429 | V15: 1.086956522 | W15: 3.198294243 | X15: =MEDIAN(B15:W15) -> 3.71717133 | Y15: =ABS(B15-$X15) -> 1.15712318 | Z15: =ABS(C15-$X15) -> 0.8645564325 | AA15: =ABS(D15-$X15) -> 0.7960418261 | AB15: =ABS(E15-$X15) -> 0.03869721508 | AC15: =ABS(F15-$X15) -> 0.2951180976 | AD15: =ABS(G15-$X15) -> 2.432022219 | AE15: =ABS(H15-$X15) -> 0.06086881216 | AF15: =ABS(I15-$X15) -> 0.6306547574 | AG15: =ABS(J15-$X15) -> 1.351321821 | AH15: =ABS(K15-$X15) -> 0.4777347098 | AI15: =ABS(L15-$X15) -> 1.057851627 | AJ15: =ABS(M15-$X15) -> 0.3728082206 | AK15: =ABS(N15-$X15) -> 2.44733006 | AL15: =ABS(O15-$X15) -> 0.03869721508 | AM15: =ABS(P15-$X15) -> 1.953502899 | AN15: =ABS(Q15-$X15) -> 0.8020889468 | AO15: =ABS(R15-$X15) -> 0.2169549285 | AP15: =ABS(S15-$X15) -> 2.549856154 | AQ15: =ABS(T15-$X15) -> 5.828283216 | AR15: =ABS(U15-$X15) -> 3.711400099 | AS15: =ABS(V15-$X15) -> 2.630214808 | AT15: =ABS(W15-$X15) -> 0.5188770865 | AU15: =MEDIAN(Y15:AT15) -> 0.8333226896 | AV15: =AU15/X15 -> 0.2241819426 | AW15: 17 | AY15: =STDEV(Y15:AT15) -> 1.427999049 | AZ15: =AY15/X15 -> 0.3841628277
A16: 18 | B16: 1.385325808 | C16: 0.9508716323 | D16: 0.4868549172 | E16: 1.089918256 | F16: 1.394169835 | G16: 1.612903226 | H16: 0.2361275089 | I16: 2.173913043 | J16: 1.369863014 | K16: 1.126760563 | L16: 1.285583104 | M16: 0.81799591 | N16: 0.6349206349 | O16: 1.095461659 | P16: 0.7054673721 | Q16: 1.013941698 | R16: 0.8234217749 | S16: 0.3891050584 | T16: 2.090909091 | U16: 0.9523809524 | V16: 0 | W16: 0.8528784648 | X16: =MEDIAN(B16:W16) -> 0.9831613254 | Y16: =ABS(B16-$X16) -> 0.4021644827 | Z16: =ABS(C16-$X16) -> 0.03228969304 | AA16: =ABS(D16-$X16) -> 0.4963064081 | AB16: =ABS(E16-$X16) -> 0.1067569308 | AC16: =ABS(F16-$X16) -> 0.4110085099 | AD16: =ABS(G16-$X16) -> 0.6297419004 | AE16: =ABS(H16-$X16) -> 0.7470338165 | AF16: =ABS(I16-$X16) -> 1.190751718 | AG16: =ABS(J16-$X16) -> 0.3867016883 | AH16: =ABS(K16-$X16) -> 0.143599238 | AI16: =ABS(L16-$X16) -> 0.3024217784 | AJ16: =ABS(M16-$X16) -> 0.1651654153 | AK16: =ABS(N16-$X16) -> 0.3482406904 | AL16: =ABS(O16-$X16) -> 0.1123003335 | AM16: =ABS(P16-$X16) -> 0.2776939532 | AN16: =ABS(Q16-$X16) -> 0.03078037299 | AO16: =ABS(R16-$X16) -> 0.1597395504 | AP16: =ABS(S16-$X16) -> 0.594056267 | AQ16: =ABS(T16-$X16) -> 1.107747766 | AR16: =ABS(U16-$X16) -> 0.03078037299 | AS16: =ABS(V16-$X16) -> 0.9831613254 | AT16: =ABS(W16-$X16) -> 0.1302828605 | AU16: =MEDIAN(Y16:AT16) -> 0.3253312344 | AV16: =AU16/X16 -> 0.3309032058 | AW16: 18 | AY16: =STDEV(Y16:AT16) -> 0.3479091225 | AZ16: =AY16/X16 -> 0.353867787
A17: 19.1 | B17: 1.334017445 | C17: 0.6339144216 | D17: 0.6815968841 | E17: 1.226158038 | F17: 0.8871989861 | G17: 1.008064516 | H17: 0.826446281 | I17: 0.9316770186 | J17: 1.095890411 | K17: 0.7042253521 | L17: 1.285583104 | M17: 1.63599182 | N17: 2.222222222 | O17: 0.4694835681 | P17: 0.8818342152 | Q17: 2.281368821 | R17: 1.189387008 | S17: 0.7782101167 | T17: 1.636363636 | U17: 1.523809524 | V17: 0.5434782609 | W17: 1.70575693 | X17: =MEDIAN(B17:W17) -> 1.051977464 | Y17: =ABS(B17-$X17) -> 0.2820399813 | Z17: =ABS(C17-$X17) -> 0.418063042 | AA17: =ABS(D17-$X17) -> 0.3703805794 | AB17: =ABS(E17-$X17) -> 0.1741805746 | AC17: =ABS(F17-$X17) -> 0.1647784775 | AD17: =ABS(G17-$X17) -> 0.04391294741 | AE17: =ABS(H17-$X17) -> 0.2255311826 | AF17: =ABS(I17-$X17) -> 0.1203004449 | AG17: =ABS(J17-$X17) -> 0.04391294741 | AH17: =ABS(K17-$X17) -> 0.3477521114 | AI17: =ABS(L17-$X17) -> 0.2336056402 | AJ17: =ABS(M17-$X17) -> 0.5840143565 | AK17: =ABS(N17-$X17) -> 1.170244759 | AL17: =ABS(O17-$X17) -> 0.5824938955 | AM17: =ABS(P17-$X17) -> 0.1701432484 | AN17: =ABS(Q17-$X17) -> 1.229391358 | AO17: =ABS(R17-$X17) -> 0.1374095447 | AP17: =ABS(S17-$X17) -> 0.2737673468 | AQ17: =ABS(T17-$X17) -> 0.5843861728 | AR17: =ABS(U17-$X17) -> 0.4718320603 | AS17: =ABS(V17-$X17) -> 0.5084992027 | AT17: =ABS(W17-$X17) -> 0.6537794661 | AU17: =MEDIAN(Y17:AT17) -> 0.3148960464 | AV17: =AU17/X17 -> 0.2993372551 | AW17: 19.1 | AY17: =STDEV(Y17:AT17) -> 0.3173934573 | AZ17: =AY17/X17 -> 0.3017112707
A18: 19.2 | B18: 1.590559261 | C18: 1.267828843 | D18: 0.5842259007 | E18: 1.634877384 | F18: 0.8871989861 | G18: 1.209677419 | H18: 0.826446281 | I18: 1.242236025 | J18: 1.917808219 | K18: 1.830985915 | L18: 2.02020202 | M18: 1.942740286 | N18: 0.9523809524 | O18: 0.6259780908 | P18: 2.645502646 | Q18: 3.168567807 | R18: 1.64684355 | S18: 1.167315175 | T18: 2.090909091 | U18: 1.904761905 | V18: 1.086956522 | W18: 2.345415778 | X18: =MEDIAN(B18:W18) -> 1.612718323 | Y18: =ABS(B18-$X18) -> 0.02215906152 | Z18: =ABS(C18-$X18) -> 0.3448894796 | AA18: =ABS(D18-$X18) -> 1.028492422 | AB18: =ABS(E18-$X18) -> 0.02215906152 | AC18: =ABS(F18-$X18) -> 0.7255193366 | AD18: =ABS(G18-$X18) -> 0.4030409033 | AE18: =ABS(H18-$X18) -> 0.7862720417 | AF18: =ABS(I18-$X18) -> 0.3704822978 | AG18: =ABS(J18-$X18) -> 0.3050898965 | AH18: =ABS(K18-$X18) -> 0.2182675928 | AI18: =ABS(L18-$X18) -> 0.4074836975 | AJ18: =ABS(M18-$X18) -> 0.3300219636 | AK18: =ABS(N18-$X18) -> 0.6603373703 | AL18: =ABS(O18-$X18) -> 0.9867402319 | AM18: =ABS(P18-$X18) -> 1.032784323 | AN18: =ABS(Q18-$X18) -> 1.555849485 | AO18: =ABS(R18-$X18) -> 0.03412522718 | AP18: =ABS(S18-$X18) -> 0.4454031476 | AQ18: =ABS(T18-$X18) -> 0.4781907682 | AR18: =ABS(U18-$X18) -> 0.2920435821 | AS18: =ABS(V18-$X18) -> 0.5257618009 | AT18: =ABS(W18-$X18) -> 0.7326974556 | AU18: =MEDIAN(Y18:AT18) -> 0.4264434226 | AV18: =AU18/X18 -> 0.2644252357 | AW18: 19.2 | AY18: =STDEV(Y18:AT18) -> 0.3799067004 | AZ18: =AY18/X18 -> 0.2355691599

Sheet SPEARMEN
B1: 2 | C1: 3 | D1: 4 | E1: 6 | F1: 7 | G1: 9 | H1: 10 | I1: 12 | J1: 13 | K1: 14 | L1: 15.1 | M1: 15.2 | N1: 17 | O1: 18 | P1: 19.1 | Q1: 19.2
A2: 1 | B2: 0.23 | C2: -0.162 | D2: -0.0977 | E2: 0.119 | F2: 0.106 | G2: 0.171 | H2: 0.00621 | I2: -0.283 | J2: -0.27 | K2: -0.0164 | L2: -0.174 | M2: -0.377 | N2: -0.442 | O2: -0.24 | P2: -0.0152 | Q2: 0.0423
B3: 0.299 | C3: 0.466 | D3: 0.661 | E3: 0.593 | F3: 0.635 | G3: 0.441 | H3: 0.976 | I3: 0.199 | J3: 0.22 | K3: 0.94 | L3: 0.432 | M3: 0.0827 | N3: 0.0391 | O3: 0.278 | P3: 0.944 | Q3: 0.848
A4: 2 | C4: 0.211 | D4: 0.0785 | E4: 0.289 | F4: -0.108 | G4: 0.527 | H4: 0.189 | I4: -0.132 | J4: -0.0988 | K4: -0.275 | L4: -0.19 | M4: -0.268 | N4: -0.436 | O4: -0.275 | P4: -0.0525 | Q4: -0.057
C5: 0.342 | D5: 0.724 | E5: 0.189 | F5: 0.628 | G5: 0.0119 | H5: 0.394 | I5: 0.554 | J5: 0.657 | K5: 0.212 | L5: 0.391 | M5: 0.224 | N5: 0.0419 | O5: 0.212 | P5: 0.813 | Q5: 0.797
A6: 3 | D6: 0.0796 | E6: 0.317 | F6: 0.0909 | G6: 0.151 | H6: 0.142 | I6: 0.0807 | J6: 0.102 | K6: 0.171 | L6: -0.474 | M6: -0.505 | N6: -0.477 | O6: -0.217 | P6: -0.36 | Q6: -0.339
D7: 0.72 | E7: 0.148 | F7: 0.683 | G7: 0.498 | H7: 0.521 | I7: 0.717 | J7: 0.646 | K7: 0.441 | L7: 0.0259 | M7: 0.0165 | N7: 0.0247 | O7: 0.326 | P7: 0.0985 | Q7: 0.12
A8: 4 | E8: 0.0728 | F8: -0.0706 | G8: 0.117 | H8: 0.455 | I8: -0.193 | J8: 0.146 | K8: -0.146 | L8: 0.0141 | M8: 0.0853 | N8: 0.083 | O8: 0.234 | P8: 0.111 | Q8: 0.274
E9: 0.743 | F9: 0.751 | G9: 0.6 | H9: 0.0334 | I9: 0.386 | J9: 0.511 | K9: 0.511 | L9: 0.948 | M9: 0.702 | N9: 0.709 | O9: 0.289 | P9: 0.617 | Q9: 0.214
A10: 6 | F10: -0.143 | G10: 0.416 | H10: 0.178 | I10: -0.0265 | J10: 0.0198 | K10: -0.164 | L10: -0.386 | M10: -0.214 | N10: -0.257 | O10: -0.199 | P10: -0.348 | Q10: -0.292
F11: 0.521 | G11: 0.0534 | H11: 0.423 | I11: 0.904 | J11: 0.928 | K11: 0.46 | L11: 0.0751 | M11: 0.334 | N11: 0.244 | O11: 0.369 | P11: 0.11 | Q11: 0.184
A12: 7 | G12: -0.112 | H12: -0.295 | I12: -0.138 | J12: -0.24 | K12: 0.0265 | L12: -0.26 | M12: -0.197 | N12: -0.0333 | O12: -0.109 | P12: -0.352 | Q12: -0.0491
G13: 0.614 | H13: 0.179 | I13: 0.534 | J13: 0.278 | K13: 0.904 | L13: 0.238 | M13: 0.374 | N13: 0.88 | O13: 0.624 | P13: 0.107 | Q13: 0.825
A14: 9 | H14: -0.0113 | I14: -0.257 | J14: 0.0333 | K14: -0.189 | L14: -0.286 | M14: -0.4 | N14: -0.0401 | O14: 0.142 | P14: 0.0999 | Q14: 0.197
H15: 0.956 | I15: 0.244 | J15: 0.88 | K15: 0.394 | L15: 0.193 | M15: 0.064 | N15: 0.856 | O15: 0.524 | P15: 0.653 | Q15: 0.374
A16: 10 | I16: 0.0294 | J16: 0.133 | K16: 0.0779 | L16: -0.0491 | M16: 0.167 | N16: -0.14 | O16: -0.21 | P16: 0.201 | Q16: -0.267
I17: 0.892 | J17: 0.551 | K17: 0.724 | L17: 0.825 | M17: 0.451 | N17: 0.527 | O17: 0.342 | P17: 0.366 | Q17: 0.226
A18: 12 | J18: -0.0728 | K18: 0.184 | L18: -0.219 | M18: -0.146 | N18: -0.244 | O18: -0.111 | P18: -0.446 | Q18: -0.596
J19: 0.743 | K19: 0.409 | L19: 0.324 | M19: 0.511 | N19: 0.269 | O19: 0.617 | P19: 0.0374 | Q19: 0.00352
A20: 13 | K20: -0.0107 | L20: -0.00282 | M20: -0.116 | N20: 0.0254 | O20: 0.0988 | P20: 0.578 | Q20: 0.259
K21: 0.96 | L21: 0.988 | M21: 0.603 | N21: 0.908 | O21: 0.657 | P21: 0.00499 | Q21: 0.24
A22: 14 | L22: -0.187 | M22: -0.16 | N22: -0.128 | O22: -0.38 | P22: 0.00395 | Q22: -0.235
L23: 0.4 | M23: 0.472 | N23: 0.565 | O23: 0.0798 | P23: 0.984 | Q23: 0.287
A24: 15.1 | M24: 0.486 | N24: 0.366 | O24: 0.0119 | P24: 0.261 | Q24: 0.433
M25: 0.0218 | N25: 0.0919 | O25: 0.956 | P25: 0.236 | Q25: 0.0437
A26: 15.2 | N26: 0.596 | O26: 0.249 | P26: 0.231 | Q26: 0.0446
N27: 0.00352 | O27: 0.26 | P27: 0.297 | Q27: 0.84
A28: 17 | O28: 0.679 | P28: 0.344 | Q28: 0.228
O29: 0.000447 | P29: 0.115 | Q29: 0.304
A30: 18 | P30: 0.223 | Q30: 0.221
P31: 0.314 | Q31: 0.319
A32: 19.1 | Q32: 0.609
Q33: 0.00267
A35: 19.2
B40: 14 | C40: 15.1 | D40: 15.2 | E40: 17 | F40: 18 | G40: 19.1 | H40: 19.2
A41: 1 | B41: -0.0164 | C41: -0.174 | D41: -0.377 | E41: -0.442 | F41: -0.24 | G41: -0.0152 | H41: 0.0423
B42: 0.94 | C42: 0.432 | D42: 0.0827 | E42: 0.0391 | F42: 0.278 | G42: 0.944 | H42: 0.848
B43: 22 | C43: 22 | D43: 22 | E43: 22 | F43: 22 | G43: 22 | H43: 22
A45: 2 | B45: -0.275 | C45: -0.19 | D45: -0.268 | E45: -0.436 | F45: -0.275 | G45: -0.0525 | H45: -0.057
B46: 0.212 | C46: 0.391 | D46: 0.224 | E46: 0.0419 | F46: 0.212 | G46: 0.813 | H46: 0.797
B47: 22 | C47: 22 | D47: 22 | E47: 22 | F47: 22 | G47: 22 | H47: 22
A49: 3 | B49: 0.171 | C49: -0.474 | D49: -0.505 | E49: -0.477 | F49: -0.217 | G49: -0.36 | H49: -0.339
B50: 0.441 | C50: 0.0259 | D50: 0.0165 | E50: 0.0247 | F50: 0.326 | G50: 0.0985 | H50: 0.12
B51: 22 | C51: 22 | D51: 22 | E51: 22 | F51: 22 | G51: 22 | H51: 22
A53: 4 | B53: -0.146 | C53: 0.0141 | D53: 0.0853 | E53: 0.083 | F53: 0.234 | G53: 0.111 | H53: 0.274
B54: 0.511 | C54: 0.948 | D54: 0.702 | E54: 0.709 | F54: 0.289 | G54: 0.617 | H54: 0.214
B55: 22 | C55: 22 | D55: 22 | E55: 22 | F55: 22 | G55: 22 | H55: 22
A57: 6 | B57: -0.164 | C57: -0.386 | D57: -0.214 | E57: -0.257 | F57: -0.199 | G57: -0.348 | H57: -0.292
B58: 0.46 | C58: 0.0751 | D58: 0.334 | E58: 0.244 | F58: 0.369 | G58: 0.11 | H58: 0.184
B59: 22 | C59: 22 | D59: 22 | E59: 22 | F59: 22 | G59: 22 | H59: 22
A61: 7 | B61: 0.0265 | C61: -0.26 | D61: -0.197 | E61: -0.0333 | F61: -0.109 | G61: -0.352 | H61: -0.0491
B62: 0.904 | C62: 0.238 | D62: 0.374 | E62: 0.88 | F62: 0.624 | G62: 0.107 | H62: 0.825
B63: 22 | C63: 22 | D63: 22 | E63: 22 | F63: 22 | G63: 22 | H63: 22
A65: 9 | B65: -0.189 | C65: -0.286 | D65: -0.4 | E65: -0.0401 | F65: 0.142 | G65: 0.0999 | H65: 0.197
B66: 0.394 | C66: 0.193 | D66: 0.064 | E66: 0.856 | F66: 0.524 | G66: 0.653 | H66: 0.374
B67: 22 | C67: 22 | D67: 22 | E67: 22 | F67: 22 | G67: 22 | H67: 22
A69: 10 | B69: 0.0779 | C69: -0.0491 | D69: 0.167 | E69: -0.14 | F69: -0.21 | G69: 0.201 | H69: -0.267
B70: 0.724 | C70: 0.825 | D70: 0.451 | E70: 0.527 | F70: 0.342 | G70: 0.366 | H70: 0.226
B71: 22 | C71: 22 | D71: 22 | E71: 22 | F71: 22 | G71: 22 | H71: 22
A73: 12 | B73: 0.184 | C73: -0.219 | D73: -0.146 | E73: -0.244 | F73: -0.111 | G73: -0.446 | H73: -0.596
B74: 0.409 | C74: 0.324 | D74: 0.511 | E74: 0.269 | F74: 0.617 | G74: 0.0374 | H74: 0.00352
B75: 22 | C75: 22 | D75: 22 | E75: 22 | F75: 22 | G75: 22 | H75: 22
A77: 13 | B77: -0.0107 | C77: -0.00282 | D77: -0.116 | E77: 0.0254 | F77: 0.0988 | G77: 0.578 | H77: 0.259
B78: 0.96 | C78: 0.988 | D78: 0.603 | E78: 0.908 | F78: 0.657 | G78: 0.00499 | H78: 0.24
B79: 22 | C79: 22 | D79: 22 | E79: 22 | F79: 22 | G79: 22 | H79: 22
A81: 14 | C81: -0.187 | D81: -0.16 | E81: -0.128 | F81: -0.38 | G81: 0.00395 | H81: -0.235
C82: 0.4 | D82: 0.472 | E82: 0.565 | F82: 0.0798 | G82: 0.984 | H82: 0.287
C83: 22 | D83: 22 | E83: 22 | F83: 22 | G83: 22 | H83: 22
A85: 15.1 | D85: 0.486 | E85: 0.366 | F85: 0.0119 | G85: 0.261 | H85: 0.433
D86: 0.0218 | E86: 0.0919 | F86: 0.956 | G86: 0.236 | H86: 0.0437
D87: 22 | E87: 22 | F87: 22 | G87: 22 | H87: 22
A89: 15.2 | E89: 0.596 | F89: 0.249 | G89: 0.231 | H89: 0.0446
E90: 0.00352 | F90: 0.26 | G90: 0.297 | H90: 0.84
E91: 22 | F91: 22 | G91: 22 | H91: 22
A93: 17 | F93: 0.679 | G93: 0.344 | H93: 0.228
F94: 0.000447 | G94: 0.115 | H94: 0.304
F95: 22 | G95: 22 | H95: 22
A97: 18 | G97: 0.223 | H97: 0.221
G98: 0.314 | H98: 0.319
G99: 22 | H99: 22
A101: 19.1 | H101: 0.609
H102: 0.00267
H103: 22
A105: 19.2
